bitfinex/quotes_ETHUSD_20240820
["timestamp","ask_amount","ask_price","bid_price","bid_amount"]
[1724131800504,3.71874,2689.1,2688.5,3.71947]
[1724131800709,3.71866,2689.2,2688.5,3.71947]
[1724131800913,3.0,2689.3,2688.6,2.3166]
[1724131801138,3.71823,2689.5,2688.9,3.7189]
[1724131801357,3.7181,2689.6,2689.0,6.03537]
[1724131801523,3.71783,2689.8,2689.1,3.71859]
[1724131801715,3.71795,2689.7,2689.1,3.71859]
[1724131802346,3.71807,2689.6,2689.1,3.71859]
[1724131802658,3.71744,2690.1,2689.5,3.71814]
[1724131802961,3.71712,2690.3,2689.5,3.71814]
[1724131802962,3.71712,2690.3,2689.7,3.71786]
[1724131803424,3.71712,2690.3,2689.5,6.07454]
[1724131803425,0.371712,2690.2,2689.5,6.07447]
[1724131803626,3.71734,2690.1,2689.5,6.07447]
[1724131804005,0.371712,2690.2,2689.6,3.718]
[1724131804662,3.71712,2690.3,2689.7,3.71787]
[1724131805313,3.7172,2690.2,2689.5,6.07444]
[1724131805544,3.0,2690.1,2689.5,6.07444]
[1724131805747,6.7173,2690.2,2689.6,3.718]
[1724131805959,7.38903,2690.2,2689.6,3.71794]
[1724131806128,6.7173,2690.2,2689.6,3.71792]
[1724131806347,3.71685,2690.5,2689.8,3.71765]
[1724131806654,3.71685,2690.5,2689.9,2.4548]
[1724131806861,3.71685,2690.5,2690.0,3.71745]
[1724131807055,3.71629,2690.9,2690.2,3.71706]
[1724131807209,3.71651,2690.7,2690.0,3.71737]
[1724131807410,3.71651,2690.7,2690.1,3.71725]
[1724131808260,3.71629,2690.9,2690.1,3.71725]
[1724131808461,3.71687,2690.5,2689.9,2.4548]
[1724131808671,3.71736,2690.1,2689.6,2.4505]
[1724131809357,3.71732,2690.2,2689.2,2.2738]
[1724131809526,3.7179,2689.7,2689.2,2.2738]
[1724131809768,3.71761,2689.9,2689.2,5.99236]
[1724131809952,3.7179,2689.7,2689.2,5.99236]
[1724131810352,3.7179,2689.7,2689.2,2.2738]
[1724131810862,7.43591,2689.7,2689.2,2.2738]
[1724131811162,7.43587,2689.7,2689.2,2.2738]
[1724131811463,3.7179,2689.7,2689.2,2.2738]
[1724131811764,4.5286351,2689.7,2689.2,2.2738]
[1724131811932,3.71817,2689.5,2689.0,39.58]
[1724131812276,3.71817,2689.5,2688.9,2.4143]
[1724131812417,3.71817,2689.5,2688.9,6.13327]
[1724131812767,4.54285551,2689.5,2688.9,9.85218]
[1724131813059,0.671761,2689.9,2689.2,3.71849]
[1724131813362,0.671761,2689.9,2689.3,3.71842]
[1724131813511,0.671761,2689.9,2689.1,3.71859]
[1724131813721,7.389381,2689.9,2689.2,3.71852]
[1724131814046,7.389381,2689.9,2689.1,3.71859]
[1724131814047,4.8284481,2689.8,2689.1,3.71859]
[1724131814226,7.1511481,2689.8,2689.1,3.71859]
[1724131814432,3.71788,2689.7,2689.1,7.43723]
[1724131814652,1.1106881,2689.8,2689.5,3.71808]
[1724131814829,0.671761,2689.9,2689.5,3.71808]
[1724131815030,3.0,2690.1,2689.5,7.43616]
[1724131815235,3.71749,2690.0,2689.5,3.71808]
[1724131815459,3.0,2689.9,2689.3,3.71831]
[1724131815755,3.0,2689.9,2689.4,3.71822]
[1724131815958,3.671749,2689.9,2689.5,3.71814]
[1724131816163,3.0,2689.9,2689.5,3.71814]
[1724131816361,13.5785,2690.2,2689.5,3.71814]
[1724131816362,6.71736,2690.1,2689.5,3.71814]
[1724131816564,3.0,2690.1,2689.5,3.71808]
[1724131816720,6.71734,2690.1,2689.5,3.71806]
[1724131816922,1.286124,2690.0,2689.6,3.718]
[1724131817221,3.0,2690.1,2689.1,2.2889]
[1724131817417,5.4544,2690.4,2689.9,3.71757]
[1724131817618,7.4334,2690.6,2690.0,3.71738]
[1724131817850,3.71667,2690.6,2690.1,0.08467191]
[1724131818018,0.617107,2690.5,2690.1,0.08467191]
[1724131818983,4.333917,2690.5,2690.1,0.08467191]
[1724131819185,3.617107,2690.5,2690.1,0.08467191]
[1724131819484,3.617107,2690.5,2690.2,0.08460962]
[1724131819701,3.617107,2690.5,2690.2,3.71718]
[1724131819838,3.71639,2690.8,2690.3,2.35001354]
[1724131820678,9.72804,2691.0,2690.3,6.06697354]
[1724131820882,3.71595,2691.1,2690.5,3.7167]
[1724131821087,3.71596,2691.1,2690.4,7.51800579]
[1724131821289,7.44884,2691.2,2690.6,0.08416366]
[1724131821491,7.44884,2691.2,2690.2,3.71711]
[1724131821789,7.44884,2691.2,2690.0,2.4368]
[1724131821790,3.71653,2690.7,2690.0,6.15415]
[1724131821989,3.71646,2690.8,2690.0,2.4368]
[1724131821990,3.71682,2690.5,2690.0,2.4368]
[1724131822189,3.71682,2690.5,2689.9,3.71754]
[1724131822397,3.71682,2690.5,2689.8,3.71766]
[1724131822700,3.71682,2690.5,2689.9,3.71753]
[1724131823045,3.71682,2690.5,2690.0,3.71746]
[1724131823743,3.71657,2690.7,2690.0,3.71739]
[1724131823984,3.0,2690.6,2690.1,3.71732]
[1724131824193,3.0,2690.6,2690.3,3.71697]
[1724131824362,3.71596,2691.1,2690.3,3.71697]
[1724131824363,3.0,2690.8,2690.3,3.71697]
[1724131824564,2.3931,2691.1,2690.2,2.3476]
[1724131824760,3.733,2691.2,2690.5,3.71667]
[1724131825145,7.44886,2691.2,2690.6,3.71656]
[1724131825343,7.43201,2691.1,2690.5,3.71667]
[1724131825548,3.71652,2690.7,2690.2,2.3476]
[1724131825750,3.71652,2690.7,2690.2,6.06477]
[1724131826248,3.71652,2690.7,2690.0,3.71739]
[1724131826760,7.43313,2690.7,2690.1,3.71732]
[1724131827091,3.71692,2690.4,2689.8,7.43532]
[1724131827292,3.71664,2690.6,2689.8,3.71765]
[1724131827495,7.43337,2690.6,2690.0,3.71746]
[1724131827683,3.71685,2690.5,2689.8,7.43526]
[1724131827855,3.71685,2690.5,2689.9,3.71756]
[1724131828051,3.71644,2690.8,2689.6,9.6763]
[1724131828394,3.0,2690.7,2690.2,6.06438]
[1724131828609,3.908207,2690.7,2690.2,3.71708]
[1724131828811,3.908207,2690.7,2690.0,3.71738]
[1724131828812,5.99293,2690.4,2689.8,3.71773]
[1724131829217,3.71716,2690.3,2689.7,3.71786]
[1724131829423,3.733,2690.3,2689.2,6.13698]
[1724131829571,3.71768,2689.9,2689.3,3.71842]
[1724131829774,2.3394,2690.0,2689.4,3.71828]
[1724131829974,2.3394,2690.0,2689.5,3.71809]
[1724131830174,3.3421819,2690.0,2689.5,3.71809]
[1724131831275,7.0596619,2690.0,2689.3,3.71831]
[1724131831473,3.3421819,2690.0,2689.4,3.71822]
[1724131831712,3.3421819,2690.0,2689.4,3.71821]
[1724131831915,3.3421819,2690.0,2689.4,7.43643]
[1724131832420,3.3421819,2690.0,2689.5,3.71814]
[1724131832603,3.3421819,2690.0,2689.4,3.71821]
[1724131832794,3.3421819,2690.0,2689.5,3.71814]
[1724131833131,1.0027819,2690.0,2689.5,3.71814]
[1724131833275,3.0,2690.2,2689.6,3.718]
[1724131833482,6.71721,2690.2,2689.6,3.71794]
[1724131833816,3.0,2690.2,2689.8,3.71771]
[1724131833975,0.920011,2690.2,2689.6,3.71793]
[1724131834176,7.637281,2690.2,2689.6,3.71793]
[1724131834408,3.920011,2690.2,2689.8,3.71774]
[1724131834607,3.920011,2690.2,2689.6,7.43585]
[1724131834776,3.920011,2690.2,2689.9,0.08466401]
[1724131835122,2.3728,2690.6,2690.2,3.71711]
[1724131835275,3.71631,2690.9,2690.3,3.71703]
[1724131835477,6.08881,2691.1,2690.4,3.71689]
[1724131835709,6.08881,2691.1,2690.5,3.71675]
[1724131835937,7.4425,2691.1,2690.5,0.08408749]
[1724131836992,3.71617,2691.0,2690.5,0.08408749]
[1724131837211,6.71617,2691.0,2690.5,0.08408749]
[1724131837411,3.71623,2690.9,2690.5,0.08408749]
[1724131837794,3.71647,2690.8,2690.0,3.71735]
[1724131837999,4.088187,2690.7,2690.6,0.08399143]
[1724131838177,4.088187,2690.7,2690.0,7.43471]
[1724131838385,6.19304,2690.6,2690.0,3.71735]
[1724131838701,2.4764,2690.6,2690.0,7.43472]
[1724131838901,0.371647,2690.7,2690.1,3.71731]
[1724131839197,3.7168,2690.5,2689.8,13.52099]
[1724131839584,3.71698,2690.4,2689.8,11.13769]
[1724131840095,4.1255117,2690.6,2689.9,3.71759]
[1724131840787,3.0,2690.7,2690.0,3.71744]
[1724131840983,6.71651,2690.7,2690.0,6.12284]
[1724131841696,6.71651,2690.7,2690.0,6.12278]
[1724131842100,6.71651,2690.7,2690.0,9.84015]
[1724131842385,4.290935,2690.7,2690.1,3.71729]
[1724131842597,3.0,2690.7,2690.2,3.7171]
[1724131843667,3.71644,2690.8,2690.2,3.7171]
[1724131844365,3.71644,2690.8,2690.2,7.43421]
[1724131844525,3.71623,2690.9,2690.2,3.7171]
[1724131844727,6.71614,2691.0,2690.3,3.71703]
[1724131844974,6.11915,2691.2,2690.5,3.71669]
[1724131845175,6.11915,2691.2,2690.5,6.13889]
[1724131845672,6.11915,2691.2,2690.5,9.85559]
[1724131846037,6.11915,2691.2,2690.5,6.13889]
[1724131846336,9.83506,2691.2,2690.5,6.13889]
[1724131846537,6.11915,2691.2,2690.5,6.13889]
[1724131847274,6.11915,2691.2,2690.6,3.71664]
[1724131847427,3.71617,2691.0,2690.3,3.71698]
[1724131848324,7.43236,2691.0,2690.3,3.71698]
[1724131848569,3.71631,2690.9,2690.3,3.71698]
[1724131848731,7.43238,2691.0,2690.3,7.43391]
[1724131848924,3.71617,2691.0,2690.3,7.4339]
[1724131849131,7.43237,2691.0,2690.3,3.71693]
[1724131849682,7.43237,2691.0,2690.4,0.08134836]
[1724131849869,3.71617,2691.0,2690.4,3.79823836]
[1724131852564,3.71623,2690.9,2690.4,3.79823836]
[1724131853270,3.71623,2690.9,2690.4,0.08134836]
[1724131853470,7.4321,2691.1,2690.4,3.71684]
[1724131853683,5.07286,2691.1,2690.5,3.7980223]
[1724131854173,7.44876,2691.3,2690.5,3.7980223]
[1724131854174,7.43153,2691.3,2690.7,3.71649]
[1724131854331,6.71585,2691.2,2690.6,2.2894]
[1724131854530,6.71585,2691.2,2690.8,0.08096413]
[1724131854758,13.41578,2690.8,2690.7,0.08106018]
[1724131854975,3.71672,2690.6,2689.9,3.7176]
[1724131855178,3.71672,2690.6,2690.1,3.71731]
[1724131855331,8.98316,2690.8,2690.1,3.71724]
[1724131855682,3.0,2690.7,2690.1,3.71724]
[1724131855831,6.71652,2690.7,2690.1,3.71724]
[1724131856032,3.0,2690.7,2690.1,3.71724]
[1724131856232,3.0,2690.7,2690.2,3.71712]
[1724131856737,3.0,2690.7,2690.3,3.71703]
[1724131857177,3.0,2690.7,2690.1,7.43445]
[1724131857334,6.71653,2690.7,2690.1,3.71721]
[1724131857741,3.0,2690.7,2690.2,3.71716]
[1724131858568,6.71652,2690.7,2690.0,2.2853]
[1724131858737,3.71677,2690.6,2690.0,6.00277]
[1724131858937,3.71691,2690.4,2690.0,2.2853]
[1724131859138,3.71691,2690.4,2689.8,3.71772]
[1724131859374,3.71691,2690.4,2689.9,3.71759]
[1724131859587,6.02463,2690.6,2689.9,3.71759]
[1724131859737,3.71686,2690.5,2689.9,3.71759]
[1724131860134,3.71686,2690.5,2689.9,3.71752]
[1724131860983,3.71673,2690.6,2689.9,3.71752]
[1724131861190,6.71654,2690.7,2690.1,3.71726]
[1724131861409,3.71664,2690.6,2690.1,3.71726]
[1724131862445,6.71662,2690.7,2690.1,3.71726]
[1724131862599,3.71665,2690.6,2690.1,3.71726]
[1724131863098,3.71665,2690.6,2690.1,3.71727]
[1724131863304,6.7165,2690.7,2690.1,3.71727]
[1724131863963,6.7165,2690.7,2690.2,3.71719]
[1724131864165,3.7165,2690.7,2690.2,3.71719]
[1724131864892,3.7165,2690.7,2690.3,0.07884858]
[1724131865095,3.7165,2690.7,2690.2,3.71719]
[1724131865307,3.71621,2691.0,2690.3,0.07884858]
[1724131865509,3.71624,2690.9,2690.4,3.71689]
[1724131865801,6.71595,2691.1,2690.5,2.3972]
[1724131866001,3.7161,2691.0,2690.5,2.47585643]
[1724131866219,3.0,2691.1,2690.5,6.19259643]
[1724131866424,3.0,2691.1,2690.6,3.71655]
[1724131866584,6.71595,2691.1,2690.6,3.71663]
[1724131866789,3.71595,2691.1,2690.7,0.07846432]
[1724131867172,3.71595,2691.1,2690.5,6.11387]
[1724131867368,3.71595,2691.1,2690.8,0.07836827]
[1724131867696,3.71595,2691.1,2690.5,6.11387]
[1724131867697,3.71595,2691.1,2690.9,0.07827223]
[1724131867866,3.71595,2691.1,2690.5,6.11387]
[1724131868069,3.71595,2691.1,2690.6,0.07856037]
[1724131869070,3.71567,2691.3,2690.6,3.79518037]
[1724131869311,3.0,2691.4,2690.8,3.71623]
[1724131869312,3.0,2691.2,2690.8,3.71623]
[1724131869512,3.0,2691.4,2690.8,3.71623]
[1724131869728,3.0,2691.4,2690.9,0.07827223]
[1724131870570,4.270874,2691.4,2690.9,0.07827223]
[1724131870773,3.71609,2691.0,2690.9,0.07827223]
[1724131871004,3.71609,2691.0,2690.5,2.3972]
[1724131871203,3.71609,2691.0,2690.9,0.07827223]
[1724131871371,3.71609,2691.0,2690.4,11.13683]
[1724131871571,3.71609,2691.0,2690.9,0.07827223]
[1724131871810,4.687029,2691.0,2690.4,11.13683]
[1724131872016,4.687029,2691.0,2690.9,0.07827223]
[1724131872235,4.687029,2691.0,2690.4,11.13683]
[1724131872516,3.71609,2691.0,2690.4,11.13683]
[1724131872711,3.71598,2691.1,2690.5,3.79533643]
[1724131872921,9.70922,2691.2,2690.6,3.71663]
[1724131873215,3.71598,2691.1,2690.6,3.71663]
[1724131873512,3.71598,2691.1,2690.7,0.07846432]
[1724131874304,1.34252,2691.1,2690.5,3.71675]
[1724131874500,9.70922,2691.2,2690.6,0.07856037]
[1724131874710,3.7157,2691.3,2690.7,6.1718]
[1724131875075,3.7157,2691.3,2690.8,0.07836827]
[1724131875711,3.71582,2691.2,2690.8,0.07836827]
[1724131877027,7.44882,2691.2,2690.8,0.07836827]
[1724131877250,7.43229,2691.0,2690.8,0.07836827]
[1724131877522,3.71609,2691.0,2690.9,0.07827223]
[1724131877680,2.3331,2691.0,2690.4,7.42]
[1724131877876,3.71665,2690.6,2690.1,2.3234]
[1724131878083,3.71692,2690.4,2689.8,13.46106]
[1724131878421,3.71665,2690.6,2689.9,3.71753]
[1724131878823,7.44942,2690.8,2690.0,3.71737]
[1724131879031,7.44942,2690.8,2689.8,9.7434]
[1724131879230,9.0492,2691.0,2690.3,3.71693]
[1724131879376,3.71639,2690.8,2690.3,3.71693]
[1724131879782,0.44166666,2690.9,2690.4,0.07868161]
[1724131879981,3.44166666,2690.9,2690.4,0.07868161]
[1724131880205,3.0,2690.9,2690.5,2.2849]
[1724131880527,3.7161,2691.0,2690.6,0.07848948]
[1724131880735,4.477882,2691.1,2690.6,0.07848948]
[1724131880915,3.71617,2691.0,2690.6,0.07848948]
[1724131881532,3.71624,2690.9,2690.6,0.07848948]
[1724131881733,0.743241,2690.8,2690.6,0.07848948]
[1724131881927,3.71624,2690.9,2690.6,0.07848948]
[1724131882130,7.43293,2690.8,2690.3,2.4095]
[1724131882332,7.43293,2690.8,2690.7,0.07836593]
[1724131882333,3.71644,2690.8,2690.7,0.07836593]
[1724131882530,7.4329,2690.8,2690.3,2.4095]
[1724131882717,7.4329,2690.8,2690.7,0.07836593]
[1724131882913,3.71644,2690.8,2690.3,2.4095]
[1724131883117,3.71644,2690.8,2690.7,0.07836593]
[1724131883356,3.71644,2690.8,2690.1,11.13724]
[1724131883357,6.801559,2690.8,2690.1,7.42]
[1724131883543,3.71678,2690.5,2690.1,7.42]
[1724131883861,3.71713,2690.3,2690.1,7.42]
[1724131884249,3.733,2690.5,2690.1,7.42]
[1724131884250,7.4498,2690.5,2690.1,7.42]
[1724131885467,3.71673,2690.6,2690.1,7.42]
[1724131885632,6.801559,2690.8,2690.1,7.42]
[1724131885633,3.7165,2690.7,2690.2,6.08435]
[1724131886158,3.733,2690.8,2690.2,9.80145]
[1724131886365,3.733,2690.8,2690.2,6.0843]
[1724131886866,7.44944,2690.8,2690.2,6.0843]
[1724131887014,3.733,2690.8,2690.2,9.80141]
[1724131887342,3.71616,2691.0,2690.4,3.71682]
[1724131887729,3.71623,2690.9,2690.4,3.71682]
[1724131888119,7.43255,2690.9,2690.2,9.80137]
[1724131888322,3.71637,2690.8,2690.2,6.08427]
[1724131888769,7.44937,2690.8,2690.2,6.08427]
[1724131889371,3.733,2690.8,2690.3,3.71704]
[1724131889881,3.71623,2690.9,2690.4,3.71691]
[1724131890387,7.43254,2690.9,2690.2,6.08425]
[1724131890532,3.71623,2690.9,2690.3,3.71703]
[1724131891086,3.71623,2690.9,2690.4,3.71688]
[1724131891286,3.0,2691.2,2690.8,2.4406]
[1724131891437,3.7154,2691.5,2690.9,3.71622]
[1724131891788,3.7154,2691.5,2691.0,3.79038603]
[1724131891930,3.733,2691.6,2691.1,3.71584]
[1724131892130,3.733,2691.6,2690.8,2.4406]
[1724131892131,3.733,2691.6,2691.0,3.71603]
[1724131892551,3.733,2691.6,2691.1,3.71587]
[1724131893563,7.44827,2691.6,2691.0,7.43203]
[1724131893762,12.91286,2691.9,2691.2,3.71571]
[1724131894078,12.91286,2691.9,2691.4,3.7155]
[1724131894079,3.733,2691.9,2691.4,3.7155]
[1724131894232,7.44786,2691.9,2691.2,9.87203]
[1724131894641,3.715,2691.8,2691.0,3.71605]
[1724131894969,3.71527,2691.6,2691.0,3.71605]
[1724131895161,3.715,2691.8,2691.1,0.07790656]
[1724131895350,3.715,2691.8,2691.3,3.71566]
[1724131895735,3.733,2691.9,2691.3,6.04524]
[1724131895978,3.733,2691.9,2691.4,0.07760262]
[1724131896954,3.733,2691.9,2691.5,0.07430299]
[1724131897153,3.733,2691.9,2691.5,3.78969299]
[1724131897361,3.733,2691.9,2691.6,0.07741063]
[1724131898139,3.733,2692.2,2691.7,3.71504]
[1724131898867,3.733,2692.2,2691.8,0.07721867]
[1724131899070,3.71467,2692.1,2691.8,0.07721867]
[1724131899270,3.71479,2692.0,2691.4,11.13549]
[1724131899585,3.71503,2691.8,2691.4,7.42]
[1724131899739,3.71503,2691.8,2691.5,0.07750662]
[1724131899940,7.43011,2691.8,2691.5,0.07750662]
[1724131900179,3.71503,2691.8,2691.5,0.07750662]
[1724131900383,3.71522,2691.7,2691.5,0.07750662]
[1724131900956,3.71526,2691.6,2691.5,0.07750662]
[1724131901346,7.43052,2691.6,2691.5,0.07750662]
[1724131901549,3.71544,2691.5,2690.9,11.13622]
[1724131901760,3.71544,2691.5,2690.9,3.71622]
[1724131901994,3.71544,2691.5,2690.8,9.85384]
[1724131902161,3.71544,2691.5,2690.9,3.7162]
[1724131903166,3.71553,2691.4,2690.9,3.7162]
[1724131905032,3.71595,2691.1,2690.6,11.13655]
[1724131905226,3.71595,2691.1,2690.6,7.42]
[1724131905530,7.43199,2691.1,2690.6,11.13661]
[1724131905707,3.71595,2691.1,2690.6,11.13661]
[1724131906080,3.71595,2691.1,2690.5,3.71665]
[1724131907001,7.43199,2691.1,2690.5,3.71665]
[1724131907217,3.71595,2691.1,2690.5,3.71665]
[1724131909345,11.16447,2691.3,2690.7,3.7165]
[1724131909502,11.16446,2691.3,2690.7,3.7165]
[1724131909689,11.16446,2691.3,2690.8,0.0779922]
[1724131910329,3.71547,2691.5,2690.8,3.7942722]
[1724131910642,2.2899,2691.6,2690.9,6.025]
[1724131910789,3.71541,2691.5,2690.9,6.025]
[1724131911133,3.71541,2691.5,2691.0,0.07789123]
[1724131912100,3.49157406,2691.6,2691.0,0.07789123]
[1724131912331,0.49157406,2691.6,2691.1,3.71593]
[1724131912554,0.49157406,2691.6,2691.2,0.07773243]
[1724131913305,3.7152,2691.7,2691.2,3.79352243]
[1724131913948,3.7152,2691.7,2691.2,0.07773243]
[1724131914151,0.74482,2691.6,2691.2,0.07773243]
[1724131914454,4.46016,2691.6,2691.0,3.716]
[1724131914625,3.71534,2691.6,2691.3,0.07761906]
[1724131914952,7.44849,2691.5,2691.4,0.07752306]
[1724131915249,3.733,2691.5,2691.4,0.07752306]
[1724131915560,3.733,2691.5,2691.1,3.71592]
[1724131915706,3.733,2691.5,2691.4,0.07751872]
[1724131915905,3.733,2691.5,2691.1,3.71592]
[1724131916222,3.733,2691.8,2691.2,3.79341073]
[1724131916427,2.4514,2692.7,2691.6,3.7152]
[1724131916609,7.44649,2692.9,2692.3,3.71421]
[1724131916805,7.44649,2692.9,2692.1,3.71448]
[1724131916806,5.056083,2692.8,2692.1,3.71448]
[1724131917071,5.056083,2692.8,2692.4,0.07657063]
[1724131917269,3.71359,2692.9,2692.1,3.71448]
[1724131917556,3.7136,2692.8,2692.0,11.13469]
[1724131917853,6.10616,2692.4,2692.2,0.07670323]
[1724131918067,3.71429,2692.3,2692.1,0.07679917]
[1724131918228,3.733,2692.5,2691.6,7.42]
[1724131918554,7.44704,2692.5,2691.8,3.71497]
[1724131918768,7.44711,2692.5,2691.9,2.2593]
[1724131918936,3.71417,2692.4,2691.9,2.2593]
[1724131919251,7.44711,2692.5,2691.9,2.2593]
[1724131919627,3.71425,2692.4,2691.9,2.2593]
[1724131919860,3.71431,2692.3,2691.9,2.2593]
[1724131920072,3.71425,2692.4,2691.9,2.2593]
[1724131920216,3.71434,2692.3,2691.9,2.2593]
[1724131920710,3.71425,2692.4,2691.9,2.2593]
[1724131920912,3.71433,2692.3,2691.9,2.2593]
[1724131921164,3.71425,2692.4,2691.9,2.2593]
[1724131922755,7.44689,2692.6,2691.9,2.2593]
[1724131923058,7.44689,2692.6,2691.9,5.97405]
[1724131923538,7.44689,2692.6,2691.9,9.6888]
[1724131923723,7.44689,2692.6,2691.9,5.97405]
[1724131923724,3.71389,2692.6,2691.9,5.97405]
[1724131924262,3.733,2692.9,2691.9,2.2593]
[1724131924448,7.44655,2692.9,2692.3,3.71423]
[1724131924932,7.44655,2692.9,2692.4,0.0763914]
[1724131925136,3.71362,2692.8,2692.4,0.0763914]
[1724131925335,3.733,2692.9,2692.5,2.2531]
[1724131925336,7.44647,2692.9,2692.5,2.2531]
[1724131925534,7.44647,2692.9,2692.6,0.07600153]
[1724131926021,3.733,2692.9,2692.6,0.07600153]
[1724131926540,7.44646,2692.9,2692.6,0.07600153]
[1724131926857,3.71387,2692.7,2692.1,2.3289]
[1724131927026,3.71389,2692.6,2692.1,2.3289]
[1724131927221,4.458246,2692.8,2692.1,6.04346]
[1724131927428,8.171976,2692.8,2692.1,6.04346]
[1724131927777,4.458246,2692.8,2692.1,6.04337]
[1724131927937,4.458246,2692.8,2692.1,9.75783]
[1724131928141,8.171986,2692.8,2692.1,6.04336]
[1724131928327,3.71379,2692.7,2692.1,6.04336]
[1724131928756,5.1386536,2692.7,2692.1,6.04336]
[1724131929166,1.4248636,2692.7,2692.1,9.75784]
[1724131929342,4.458246,2692.8,2692.2,3.71441]
[1724131929760,3.733,2692.9,2692.4,3.71406]
[1724131930139,3.733,2692.9,2692.3,3.71426]
[1724131930343,3.71341,2693.0,2692.4,2.4775]
[1724131930573,3.71381,2692.7,2692.1,2.4775]
[1724131930770,3.71381,2692.7,2692.1,6.19206]
[1724131930943,2.3458,2693.2,2692.1,6.19202]
[1724131931138,3.7137,2692.8,2692.2,3.7144]
[1724131931401,3.71375,2692.7,2692.2,3.7144]
[1724131931859,7.42739,2692.8,2692.2,3.7144]
[1724131932391,3.71377,2692.7,2692.1,2.4775]
[1724131932545,3.71369,2692.8,2692.1,2.4775]
[1724131932546,3.71397,2692.6,2692.1,2.4775]
[1724131932887,3.71403,2692.5,2692.1,2.4775]
[1724131933091,3.71403,2692.5,2692.0,7.42]
[1724131933484,3.733,2692.6,2692.0,11.13469]
[1724131933697,7.44689,2692.6,2692.0,11.13469]
[1724131934107,3.733,2692.6,2692.0,11.13469]
[1724131934268,3.733,2692.6,2692.0,11.13461]
[1724131934775,3.733,2692.6,2692.2,3.7144]
[1724131935014,3.733,2692.6,2692.0,11.13459]
[1724131935806,3.733,2692.6,2692.1,3.71456]
[1724131936316,3.733,2692.6,2691.9,3.71472]
[1724131936680,3.71404,2692.5,2691.9,3.71472]
[1724131937317,3.71451,2692.2,2691.7,7.42]
[1724131937482,3.71468,2692.1,2691.7,7.42]
[1724131937744,3.71468,2692.1,2690.6,3.71655]
[1724131937745,3.71493,2691.9,2691.3,19.71]
[1724131937981,3.71493,2691.9,2691.1,6.06915]
[1724131938516,4.687363,2691.9,2691.2,3.71573]
[1724131938683,3.71507,2691.8,2691.2,7.43146]
[1724131938879,3.71507,2691.8,2691.2,3.71573]
[1724131939084,6.0094,2692.0,2691.3,3.71555]
[1724131939417,6.0094,2692.0,2691.5,3.71532]
[1724131939914,6.0094,2692.0,2691.6,0.0769885]
[1724131940121,7.44737,2692.3,2691.6,6.1454085]
[1724131940422,3.733,2692.3,2691.9,3.71483]
[1724131940631,5.060377,2692.3,2691.9,3.71483]
[1724131940792,5.060377,2692.3,2692.0,0.07666675]
[1724131941300,8.774757,2692.3,2692.0,0.07666675]
[1724131941505,5.060377,2692.3,2691.8,3.71497]
[1724131941671,8.774677,2692.3,2692.1,0.0765708]
[1724131942000,5.060377,2692.3,2692.2,0.07647485]
[1724131942310,10.42821,2692.5,2691.6,2.3533]
[1724131942311,6.7141,2692.5,2691.6,2.3533]
[1724131942471,6.7141,2692.5,2692.2,0.07647485]
[1724131942676,10.42825,2692.5,2691.9,3.71472]
[1724131942870,6.7141,2692.5,2692.3,0.07637891]
[1724131943070,1.27235,2692.4,2692.3,0.07637891]
[1724131943272,3.7141,2692.5,2692.0,3.71464]
[1724131943564,3.733,2692.6,2692.2,3.71435]
[1724131943778,3.733,2692.6,2692.3,0.07637891]
[1724131944021,3.733,2692.6,2692.2,3.71435]
[1724131944182,3.733,2692.6,2692.4,0.07628298]
[1724131944587,3.733,2692.6,2692.1,6.06777]
[1724131944914,3.733,2692.6,2691.5,7.42]
[1724131944915,3.71459,2692.1,2691.5,7.42]
[1724131945125,3.71485,2691.9,2691.5,7.42]
[1724131945775,3.71444,2692.2,2691.6,3.71513]
[1724131946818,7.42896,2692.2,2691.6,3.71513]
[1724131947014,3.71444,2692.2,2691.6,3.71513]
[1724131948086,7.42896,2692.2,2691.6,3.71513]
[1724131948269,3.71444,2692.2,2691.6,3.71513]
[1724131949982,3.71444,2692.2,2691.7,3.71509]
[1724131950517,3.71444,2692.2,2691.6,3.71513]
[1724131950720,3.71444,2692.2,2691.6,7.4303]
[1724131951118,3.71444,2692.2,2691.7,2.2692]
[1724131951993,3.733,2692.3,2691.8,3.71498]
[1724131952193,3.733,2692.3,2691.8,7.42989]
[1724131952500,3.71423,2692.4,2691.8,3.71491]
[1724131952705,7.44696,2692.6,2692.0,3.7147]
[1724131952902,7.44696,2692.6,2691.9,3.71475]
[1724131953107,3.71403,2692.5,2691.9,3.71475]
[1724131953431,7.44696,2692.6,2691.9,3.71475]
[1724131954102,8.435256,2692.6,2691.9,3.71475]
[1724131954505,4.721296,2692.6,2691.7,5.98423]
[1724131954725,3.71468,2692.1,2691.5,11.13533]
[1724131954892,3.71468,2692.1,2691.8,0.07692515]
[1724131955091,3.71468,2692.1,2691.5,7.42]
[1724131955405,3.71548,2691.5,2691.2,7.42]
[1724131955583,3.71548,2691.5,2690.9,3.71622]
[1724131956526,7.44819,2691.7,2690.8,6.16588]
[1724131956527,11.16343,2691.7,2691.0,3.71606]
[1724131956846,3.71528,2691.6,2691.0,7.43205]
[1724131957020,3.7154,2691.5,2691.0,3.71599]
[1724131957541,3.7154,2691.5,2690.8,9.88211]
[1724131957751,3.7154,2691.5,2690.9,3.71619]
[1724131958256,3.71528,2691.6,2691.0,3.71607]
[1724131958623,3.71528,2691.6,2690.9,7.43222]